fUSD/lending_fUSD_20240519
["ID","MTS","AMOUNT","RATE_DAILY","PERIOD"]
[327460069,1716081039613,-500.0,0.00027397,2]
[327460070,1716081039623,-500.0,0.00027397,2]
[327460071,1716081039632,-843.27,0.00027397,2]
[327460072,1716081039641,-1305.03,0.00027397,2]
[327460073,1716081039651,-500.0,0.00027397,2]
[327460074,1716081039660,-500.0,0.00027397,2]
[327460075,1716081039670,-500.0,0.00027397,2]
[327460076,1716081039679,-500.0,0.00027397,2]
[327460077,1716081039689,-844.63,0.00027397,2]
[327460078,1716081039699,-500.0,0.00027397,2]
[327460079,1716081039708,-500.0,0.00027397,2]
[327460080,1716081039765,-500.0,0.00027397,2]
[327460081,1716081039775,-570.16,0.00027397,2]
[327460082,1716081039785,-500.0,0.00027397,2]
[327460083,1716081039794,-825.21,0.00027397,2]
[327460084,1716081039804,-500.0,0.00027397,2]
[327460085,1716081039813,-254.30827051,0.00027397,2]
[327460086,1716081039823,-500.0,0.00027397,2]
[327460087,1716081039833,-500.0,0.00027397,2]
[327460088,1716081039842,-592.37,0.00027397,2]
[327460089,1716081039851,-500.0,0.00027397,2]
[327460090,1716081039862,-500.0,0.00027397,2]
[327460091,1716081039872,-500.0,0.00027397,2]
[327460092,1716081039881,-500.0,0.00027397,2]
[327460093,1716081039891,-500.0,0.00027397,2]
[327460094,1716081039900,-500.0,0.00027397,2]
[327460095,1716081039910,-535.3771223,0.00027397,2]
[327460096,1716081039919,-500.0,0.00027397,2]
[327460097,1716081039929,-500.0,0.00027397,2]
[327460098,1716081039939,-500.0,0.00027397,2]
[327460099,1716081039948,-500.0,0.00027397,2]
[327460100,1716081039957,-500.0,0.00027397,2]
[327460101,1716081039967,-504.91,0.00027397,2]
[327460102,1716081039976,-500.0,0.00027397,2]
[327460103,1716081039986,-500.0,0.00027397,2]
[327460104,1716081039996,-500.0,0.00027397,2]
[327460105,1716081040005,-500.0,0.00027397,2]
[327460106,1716081040015,-500.0,0.00027397,2]
[327460107,1716081040024,-500.0,0.00027397,2]
[327460108,1716081040033,-528.5,0.00027397,2]
[327460109,1716081040043,-630.64,0.00027397,2]
[327460110,1716081040053,-635.42,0.00027397,2]
[327460111,1716081040062,-500.0,0.00027397,2]
[327460112,1716081040071,-500.0,0.00027397,2]
[327460113,1716081040080,-189.87,0.00027397,2]
[327460114,1716081040089,-500.0,0.00027397,2]
[327460115,1716081040098,-500.0,0.00027397,2]
[327460116,1716081040108,-728.02,0.00027397,2]
[327460117,1716081040117,-500.0,0.00027397,2]
[327460118,1716081040127,-500.0,0.00027397,2]
[327460119,1716081040136,-500.0,0.00027397,2]
[327460120,1716081040146,-635.16,0.00027397,2]
[327460121,1716081040155,-500.0,0.00027397,2]
[327460122,1716081040164,-500.0,0.00027397,2]
[327460123,1716081040174,-500.0,0.00027397,2]
[327460124,1716081040183,-500.0,0.00027397,2]
[327460125,1716081040192,-500.0,0.00027397,2]
[327460126,1716081040201,-500.0,0.00027397,2]
[327460127,1716081040211,-500.0,0.00027397,2]
[327460128,1716081040220,-500.0,0.00027397,2]
[327460129,1716081040230,-500.0,0.00027397,2]
[327460130,1716081040239,-500.0,0.00027397,2]
[327460131,1716081040249,-500.0,0.00027397,2]
[327460132,1716081040258,-500.0,0.00027397,2]
[327460133,1716081040268,-506.56,0.00027397,2]
[327460134,1716081040278,-500.0,0.00027397,2]
[327460135,1716081040288,-500.0,0.00027397,2]
[327460136,1716081040297,-500.0,0.00027397,2]
[327460137,1716081040306,-519.023167,0.00027397,2]
[327460138,1716081040316,-500.0,0.00027397,2]
[327460139,1716081040325,-500.0,0.00027397,2]
[327460140,1716081040335,-616.56775228,0.00027397,2]
[327460141,1716081040344,-500.0,0.00027397,2]
[327460142,1716081040354,-500.0,0.00027397,2]
[327460143,1716081040363,-500.0,0.00027397,2]
[327460144,1716081040372,-500.0,0.00027397,2]
[327460145,1716081040381,-500.0,0.00027397,2]
[327460146,1716081040390,-500.0,0.00027397,2]
[327460147,1716081040399,-500.0,0.00027397,2]
[327460148,1716081040408,-500.0,0.00027397,2]
[327460149,1716081040418,-500.0,0.00027397,2]
[327460150,1716081040427,-781.54,0.00027397,2]
[327460151,1716081040437,-500.0,0.00027397,2]
[327460152,1716081040446,-500.0,0.00027397,2]
[327460153,1716081040460,-522.83,0.00027397,2]
[327460154,1716081040469,-500.0,0.00027397,2]
[327460155,1716081040478,-500.0,0.00027397,2]
[327460156,1716081040489,-500.0,0.00027397,2]
[327460157,1716081040499,-500.0,0.00027397,2]
[327460158,1716081040508,-500.0,0.00027397,2]
[327460159,1716081040518,-500.0,0.00027397,2]
[327460160,1716081040527,-500.0,0.00027397,2]
[327460161,1716081040540,-500.0,0.00027397,2]
[327460162,1716081040549,-500.0,0.00027397,2]
[327460163,1716081040559,-500.0,0.00027397,2]
[327460164,1716081040569,-500.0,0.00027397,2]
[327460165,1716081040578,-500.0,0.00027397,2]
[327460166,1716081040587,-286.29,0.00027397,2]
[327460167,1716081040597,-500.0,0.00027397,2]
[327460168,1716081040606,-500.0,0.00027397,2]
[327460169,1716081040616,-500.0,0.00027397,2]
[327460170,1716081040625,-500.0,0.00027397,2]
[327460171,1716081040635,-500.0,0.00027397,2]
[327460173,1716081040644,-500.0,0.00027397,2]
[327460175,1716081040653,-500.0,0.00027397,2]
[327460177,1716081040663,-500.0,0.00027397,2]
[327460179,1716081040672,-500.0,0.00027397,2]
[327460181,1716081040681,-500.0,0.00027397,2]
[327460183,1716081040691,-500.0,0.00027397,2]
[327460185,1716081040700,-500.0,0.00027397,2]
[327460187,1716081040709,-500.0,0.00027397,2]
[327460189,1716081040719,-500.0,0.00027397,2]
[327460191,1716081040729,-500.0,0.00027397,2]
[327460193,1716081040739,-500.0,0.00027397,2]
[327460195,1716081040748,-500.0,0.00027397,2]
[327460197,1716081040757,-500.0,0.00027397,2]
[327460198,1716081040767,-500.0,0.00027397,2]
[327460200,1716081040777,-500.0,0.00027397,2]
[327460201,1716081040786,-500.0,0.00027397,2]
[327460202,1716081040796,-500.0,0.00027397,2]
[327460203,1716081040805,-500.0,0.00027397,2]
[327460204,1716081040814,-500.0,0.00027397,2]
[327460205,1716081040824,-500.0,0.00027397,2]
[327460206,1716081040833,-500.0,0.00027397,2]
[327460207,1716081040842,-934.5,0.00027397,2]
[327460208,1716081040852,-500.0,0.00027397,2]
[327460209,1716081040861,-500.0,0.00027397,2]
[327460210,1716081040871,-500.0,0.00027397,2]
[327460211,1716081040880,-850.51,0.00027397,2]
[327460212,1716081040889,-500.0,0.00027397,2]
[327460213,1716081040898,-500.0,0.00027397,2]
[327460214,1716081040908,-384.57579716,0.00027397,2]
[327460215,1716081040917,-518.81,0.00027397,2]
[327460216,1716081040926,-500.0,0.00027397,2]
[327460217,1716081040935,-500.0,0.00027397,2]
[327460218,1716081040944,-500.0,0.00027397,2]
[327460219,1716081040954,-500.0,0.00027397,2]
[327460220,1716081040963,-500.0,0.00027397,2]
[327460221,1716081040973,-202.79260106,0.00027397,2]
[327460222,1716081040982,-500.0,0.00027397,2]
[327460223,1716081040991,-500.0,0.00027397,2]
[327460224,1716081041000,-500.0,0.00027397,2]
[327460225,1716081041009,-500.0,0.00027397,2]
[327460226,1716081041019,-500.0,0.00027397,2]
[327460227,1716081041028,-500.0,0.00027397,2]
[327460228,1716081041037,-500.0,0.00027397,2]
[327460229,1716081041047,-500.0,0.00027397,2]
[327460230,1716081041056,-500.0,0.00027397,2]
[327460231,1716081041065,-500.0,0.00027397,2]
[327460232,1716081041075,-500.0,0.00027397,2]
[327460233,1716081041084,-500.0,0.00027397,2]
[327460234,1716081041094,-500.0,0.00027397,2]
[327460235,1716081041105,-500.0,0.00027397,2]
[327460236,1716081041115,-500.0,0.00027397,2]
[327460237,1716081041125,-698.11,0.00027397,2]
[327460238,1716081041136,-500.0,0.00027397,2]
[327460239,1716081041146,-183.02,0.00027397,2]
[327460240,1716081041156,-500.0,0.00027397,2]
[327460241,1716081041167,-500.0,0.00027397,2]
[327460242,1716081041176,-500.0,0.00027397,2]
[327460243,1716081041186,-500.0,0.00027397,2]
[327460244,1716081041196,-500.0,0.00027397,2]
[327460245,1716081041207,-500.0,0.00027397,2]
[327460246,1716081041217,-500.0,0.00027397,2]
[327460247,1716081041227,-500.0,0.00027397,2]
[327460248,1716081041237,-500.0,0.00027397,2]
[327460249,1716081041246,-500.0,0.00027397,2]
[327460250,1716081041256,-500.0,0.00027397,2]
[327460251,1716081041265,-500.0,0.00027397,2]
[327460252,1716081041274,-500.0,0.00027397,2]
[327460253,1716081041283,-500.0,0.00027397,2]
[327460254,1716081041292,-500.0,0.00027397,2]
[327460255,1716081041301,-2612.87,0.00027397,2]
[327460256,1716081041311,-500.0,0.00027397,2]
[327460257,1716081041319,-500.0,0.00027397,2]
[327460258,1716081041328,-500.0,0.00027397,2]
[327460259,1716081041337,-1140.35,0.00027397,2]
[327460260,1716081041346,-500.0,0.00027397,2]
[327460261,1716081041356,-500.0,0.00027397,2]
[327460262,1716081041366,-500.0,0.00027397,2]
[327460263,1716081041375,-500.0,0.00027397,2]
[327460264,1716081041384,-4111.17,0.00027397,2]
[327460265,1716081041394,-500.0,0.00027397,2]
[327460266,1716081041403,-14635.14,0.00027397,2]
[327460267,1716081041414,-1079.26,0.00027397,2]
[327460268,1716081041424,-500.0,0.00027397,2]
[327460269,1716081041434,-559.4,0.00027397,2]
[327460270,1716081041446,-806.74,0.00027397,2]
[327460271,1716081041460,-500.0,0.00027397,2]
[327460272,1716081041473,-500.0,0.00027397,2]
[327460273,1716081041483,-778.31,0.00027397,2]
[327460274,1716081041492,-500.0,0.00027397,2]
[327460275,1716081041501,-1427.48,0.00027397,2]
[327460276,1716081041512,-3741.81,0.00027397,2]
[327460277,1716081041521,-500.0,0.00027397,2]
[327460278,1716081041531,-865.99,0.00027397,2]
[327460279,1716081041541,-266.08,0.00027397,2]
[327460280,1716081041550,-500.0,0.00027397,2]
[327460281,1716081041560,-500.0,0.00027397,2]
[327460282,1716081041569,-500.0,0.00027397,2]
[327460283,1716081041578,-625.35,0.00027397,2]
[327460284,1716081041588,-500.0,0.00027397,2]
[327460285,1716081041597,-3176.13,0.00027397,2]
[327460286,1716081041606,-500.0,0.00027397,2]
[327460287,1716081041616,-500.0,0.00027397,2]
[327460288,1716081041625,-500.0,0.00027397,2]
[327460289,1716081041635,-500.0,0.00027397,2]
[327460290,1716081041644,-500.0,0.00027397,2]
[327460291,1716081041655,-500.0,0.00027397,2]
[327460292,1716081041666,-500.0,0.00027397,2]
[327460293,1716081041675,-2133.02,0.00027397,2]
[327460294,1716081041685,-507.09,0.00027397,2]
[327460295,1716081041696,-500.0,0.00027397,2]
[327460296,1716081041706,-1368.81,0.00027397,2]
[327460297,1716081041715,-700.51,0.00027397,2]
[327460298,1716081041724,-663.86,0.00027397,2]
[327460299,1716081041735,-3307.21075734,0.00027397,2]
[327460300,1716081041966,-183.60924266,0.00027397,2]
[327460301,1716081041976,-632.57,0.00027397,2]
[327460302,1716081041985,-500.0,0.00027397,2]
[327460303,1716081041994,-500.0,0.00027397,2]
[327460304,1716081042004,-500.0,0.00027397,2]
[327460305,1716081042014,-500.0,0.00027397,2]
[327460306,1716081042023,-566.18,0.00027397,2]
[327460307,1716081042032,-500.0,0.00027397,2]
[327460308,1716081042041,-500.0,0.00027397,2]
[327460309,1716081042050,-500.0,0.00027397,2]
[327460310,1716081042059,-962.79,0.00027397,2]
[327460311,1716081042068,-500.0,0.00027397,2]
[327460312,1716081042077,-525.55,0.00027397,2]
[327460313,1716081042087,-500.0,0.00027397,2]
[327460314,1716081042096,-1041.93,0.00027397,2]
[327460315,1716081042105,-1436.82,0.00027397,2]
[327460316,1716081042114,-500.0,0.00027397,2]
[327460317,1716081042123,-500.0,0.00027397,2]
[327460318,1716081042132,-500.0,0.00027397,2]
[327460319,1716081042141,-1031.39,0.00027397,2]
[327460320,1716081042150,-500.0,0.00027397,2]
[327460321,1716081042160,-500.0,0.00027397,2]
[327460322,1716081042169,-650.1,0.00027397,2]
[327460323,1716081042178,-500.0,0.00027397,2]
[327460324,1716081042187,-500.0,0.00027397,2]
[327460325,1716081042196,-7266.59,0.00027397,2]
[327460326,1716081042205,-565.9,0.00027397,2]
[327460327,1716081042214,-500.0,0.00027397,2]
[327460328,1716081042223,-500.0,0.00027397,2]
[327460329,1716081042232,-1326.33,0.00027397,2]
[327460330,1716081042243,-1158.93,0.00027397,2]
[327460331,1716081042252,-500.0,0.00027397,2]
[327460332,1716081042261,-500.0,0.00027397,2]
[327460333,1716081042270,-971.44,0.00027397,2]
[327460334,1716081042280,-1579.23,0.00027397,2]
[327460335,1716081042289,-863.87,0.00027397,2]
[327460336,1716081042298,-500.0,0.00027397,2]
[327460337,1716081042307,-500.0,0.00027397,2]
[327460338,1716081042316,-500.0,0.00027397,2]
[327460339,1716081042325,-500.0,0.00027397,2]
[327460340,1716081042335,-500.0,0.00027397,2]
[327460341,1716081042344,-1593.95,0.00027397,2]
[327460342,1716081042353,-500.0,0.00027397,2]
[327460343,1716081042362,-777.25,0.00027397,2]
[327460344,1716081042371,-500.0,0.00027397,2]
[327460345,1716081042380,-500.0,0.00027397,2]
[327460346,1716081042389,-500.0,0.00027397,2]
[327460347,1716081042398,-500.0,0.00027397,2]
[327460348,1716081042408,-1622.1,0.00027397,2]
[327460349,1716081042417,-614.84,0.00027397,2]
[327460350,1716081042427,-792.6,0.00027397,2]
[327460351,1716081042436,-500.0,0.00027397,2]
[327460352,1716081042445,-500.0,0.00027397,2]
[327460353,1716081042458,-596.35,0.00027397,2]
[327460354,1716081042467,-500.0,0.00027397,2]
[327460355,1716081042476,-788.23,0.00027397,2]
[327460356,1716081042486,-500.0,0.00027397,2]
[327460357,1716081042495,-500.0,0.00027397,2]
[327460358,1716081042504,-500.0,0.00027397,2]
[327460359,1716081042513,-1897.69,0.00027397,2]
[327460360,1716081042523,-702.23,0.00027397,2]
[327460361,1716081042535,-500.0,0.00027397,2]
[327460362,1716081042545,-500.0,0.00027397,2]
[327460363,1716081042555,-785.93,0.00027397,2]
[327460364,1716081042564,-500.0,0.00027397,2]
[327460365,1716081042574,-716.55,0.00027397,2]
[327460366,1716081042583,-500.0,0.00027397,2]
[327460367,1716081042591,-1297.96,0.00027397,2]
[327460368,1716081042601,-848.88,0.00027397,2]
[327460369,1716081042610,-500.0,0.00027397,2]
[327460371,1716081042620,-1004.4,0.00027397,2]
[327460373,1716081042630,-500.0,0.00027397,2]
[327460375,1716081042639,-1062.44,0.00027397,2]
[327460376,1716081042648,-503.18,0.00027397,2]
[327460377,1716081042658,-500.0,0.00027397,2]
[327460378,1716081042668,-500.0,0.00027397,2]
[327460379,1716081042677,-500.0,0.00027397,2]
[327460380,1716081042686,-500.0,0.00027397,2]
[327460381,1716081042696,-500.0,0.00027397,2]
[327460382,1716081042705,-500.0,0.00027397,2]
[327460383,1716081042715,-361.43389277,0.00027397,2]
[327460384,1716081042724,-500.0,0.00027397,2]
[327460385,1716081042735,-1266.93,0.00027397,2]
[327460386,1716081042746,-500.0,0.00027397,2]
[327460388,1716081042755,-500.0,0.00027397,2]
[327460389,1716081042765,-500.0,0.00027397,2]
[327460392,1716081042775,-500.0,0.00027397,2]
[327460393,1716081042784,-500.0,0.00027397,2]
[327460394,1716081042794,-500.0,0.00027397,2]
[327460396,1716081042804,-500.0,0.00027397,2]
[327460398,1716081042814,-981.99,0.00027397,2]
[327460401,1716081042824,-500.0,0.00027397,2]
[327460403,1716081042834,-922.24,0.00027397,2]
[327460405,1716081042844,-500.0,0.00027397,2]
[327460406,1716081042854,-1945.34,0.00027397,2]
[327460407,1716081042863,-597.52,0.00027397,2]
[327460408,1716081042873,-1409.39,0.00027397,2]
[327460409,1716081042883,-500.0,0.00027397,2]
[327460410,1716081042892,-555.45912937,0.00027397,2]
[327460411,1716081042902,-522.16202074,0.00027397,2]
[327460412,1716081042911,-1533.71,0.00027397,2]
[327460413,1716081042920,-506.92982531,0.00027397,2]
[327460415,1716081042930,-500.0,0.00027397,2]
[327460416,1716081042939,-500.0,0.00027397,2]
[327460417,1716081042949,-579.58,0.00027397,2]
[327460418,1716081042959,-1102.64,0.00027397,2]
[327460419,1716081042968,-500.0,0.00027397,2]
[327460420,1716081042977,-1101.22,0.00027397,2]
[327460422,1716081042988,-362.27384827,0.00027397,2]
[327460424,1716081042998,-2191.41,0.00027397,2]
[327460425,1716081043008,-500.0,0.00027397,2]
[327460426,1716081043019,-500.0,0.00027397,2]
[327460427,1716081043028,-505.11749,0.00027397,2]
[327460428,1716081043038,-518.84142151,0.00027397,2]
[327460429,1716081043048,-845.41,0.00027397,2]
[327460430,1716081043058,-500.0,0.00027397,2]
[327460431,1716081043068,-825.91,0.00027397,2]
[327460432,1716081043077,-191.80211796,0.00027397,2]
[327460433,1716081043087,-628.37,0.00027397,2]
[327460434,1716081043096,-500.0,0.00027397,2]
[327460435,1716081043106,-454.46,0.00027397,2]
[327460436,1716081043116,-500.0,0.00027397,2]
[327460437,1716081043125,-1035.16,0.00027397,2]
[327460438,1716081043135,-500.0,0.00027397,2]
[327460439,1716081043144,-500.0,0.00027397,2]
[327460440,1716081043155,-500.0,0.00027397,2]
[327460441,1716081043166,-1370.1,0.00027397,2]
[327460442,1716081043175,-504.37904937,0.00027397,2]
[327460443,1716081043185,-500.0,0.00027397,2]
[327460444,1716081043195,-1657.77,0.00027397,2]
[327460445,1716081043204,-792.32,0.00027397,2]
[327460446,1716081043215,-500.0,0.00027397,2]
[327460447,1716081043224,-711.66,0.00027397,2]
[327460448,1716081043234,-500.0,0.00027397,2]
[327460449,1716081043244,-500.0,0.00027397,2]
[327460450,1716081043254,-500.0,0.00027397,2]
[327460451,1716081043263,-4442.48,0.00027397,2]
[327460452,1716081043272,-4479.07,0.00027397,2]
[327460453,1716081043281,-500.0,0.00027397,2]
[327460454,1716081043291,-500.0,0.00027397,2]
[327460455,1716081043300,-500.0,0.00027397,2]
[327460456,1716081043310,-1002.68,0.00027397,2]
[327460457,1716081043319,-209.93929839,0.00027397,2]
[327460458,1716081043329,-576.12,0.00027397,2]
[327460459,1716081043338,-6633.82,0.00027397,2]
[327460460,1716081043348,-500.0,0.00027397,2]
[327460461,1716081043357,-500.0,0.00027397,2]
[327460462,1716081043366,-500.0,0.00027397,2]
[327460463,1716081043377,-5578.02,0.00027397,2]
[327460464,1716081043386,-500.0,0.00027397,2]
[327460465,1716081043396,-500.0,0.00027397,2]
[327460466,1716081043407,-4000.0,0.00027397,2]
[327460467,1716081043416,-163.24,0.000274,2]
[327460468,1716081043426,-4150.3617,0.00027571,2]
[327460469,1716081043436,-500.0,0.00027671,2]
[327460470,1716081043447,-500.0,0.00027671,2]
[327460471,1716081043463,-500.0,0.00027671,2]
[327460472,1716081043473,-500.0,0.00027671,2]
[327460473,1716081043483,-500.0,0.00027671,2]
[327460474,1716081043494,-500.0,0.00027671,2]
[327460475,1716081043503,-500.0,0.00027671,2]
[327460476,1716081043513,-500.0,0.00027671,2]
[327460477,1716081043524,-500.0,0.00027671,2]
[327460478,1716081043534,-500.0,0.00027671,2]
[327460479,1716081043543,-500.0,0.00027671,2]
[327460480,1716081043553,-500.0,0.00027671,2]
[327460481,1716081043563,-500.0,0.00027671,2]
[327460482,1716081043572,-500.0,0.00027671,2]
[327460483,1716081043583,-500.0,0.00027671,2]
[327460484,1716081043593,-500.0,0.00027671,2]
[327460485,1716081043602,-500.0,0.00027671,2]
[327460486,1716081043613,-506.98641638,0.00027671,2]
[327460487,1716081043623,-500.0,0.00027671,2]
[327460488,1716081043632,-500.0,0.00027671,2]
[327460489,1716081043642,-500.0,0.00027671,2]
[327460490,1716081043651,-500.0,0.00027671,2]
[327460491,1716081043661,-500.0,0.00027671,2]
[327460492,1716081043671,-500.0,0.00027671,2]
[327460493,1716081043680,-500.0,0.00027671,2]
[327460494,1716081043690,-500.0,0.00027671,2]
[327460495,1716081043699,-500.0,0.00027671,2]
[327460496,1716081043709,-500.0,0.00027671,2]
[327460497,1716081043719,-500.0,0.00027671,2]
[327460498,1716081043728,-115.42080958,0.00027671,2]
[327460499,1716081043762,-500.0,0.00027397,2]
[327460500,1716081043772,-384.57919042,0.00027671,2]
[327460501,1716081043782,-303.56080958,0.00027671,2]
[327460502,1716081044099,-196.43919042,0.00027671,2]
[327460503,1716081044109,-500.0,0.00027671,2]
[327460504,1716081044119,-500.0,0.00027671,2]
[327460505,1716081044129,-535.58144929,0.00027671,2]
[327460506,1716081044142,-500.0,0.00027671,2]
[327460507,1716081044152,-500.0,0.00027671,2]
[327460508,1716081044164,-500.0,0.00027671,2]
[327460509,1716081044174,-500.0,0.00027671,2]
[327460510,1716081044184,-500.0,0.00027671,2]
[327460511,1716081044194,-537.50360657,0.00027671,2]
[327460512,1716081044204,-500.0,0.00027671,2]
[327460513,1716081044214,-500.0,0.00027671,2]
[327460514,1716081044223,-500.0,0.00027671,2]
[327460515,1716081044233,-500.0,0.00027671,2]
[327460516,1716081044243,-509.46773691,0.00027671,2]
[327460517,1716081044253,-500.0,0.00027671,2]
[327460518,1716081044262,-500.0,0.00027671,2]
[327460519,1716081044272,-28.87857341,0.00027671,2]
[327460520,1716081044286,-471.12142659,0.00027671,2]
[327460521,1716081044296,-500.0,0.00027671,2]
[327460522,1716081044306,-619.74,0.00027671,2]
[327460523,1716081044318,-500.0,0.00027671,2]
[327460524,1716081044329,-310.78,0.00027671,2]
[327460525,1716081044339,-500.0,0.00027671,2]
[327460526,1716081044349,-500.0,0.00027671,2]
[327460527,1716081044360,-500.0,0.00027671,2]
[327460528,1716081044370,-500.0,0.00027671,2]
[327460529,1716081044382,-912.22,0.00027671,2]
[327460530,1716081044393,-500.0,0.00027671,2]
[327460531,1716081044404,-500.0,0.00027671,2]
[327460532,1716081044415,-16.13857343,0.00027671,2]
[327460533,1716081044431,-483.86142657,0.00027671,2]
[327460534,1716081044440,-500.0,0.00027671,2]
[327460535,1716081044454,-26.13857343,0.00027671,2]
[327460536,1716081044495,-473.86142657,0.00027671,2]
[327460537,1716081044505,-500.0,0.00027671,2]
[327460538,1716081044515,-421.54780965,0.00027671,2]
[327460539,1716081045235,-151.45219035,0.00027671,2]
[327460540,1716081045245,-330.18333106,0.00027671,2]
[327460541,1716081045255,-500.0,0.00027671,2]
[327460542,1716081045265,-500.0,0.00027671,2]
[327460543,1716081045274,-500.0,0.00027671,2]
[327460544,1716081045284,-500.0,0.00027671,2]
[327460545,1716081045294,-500.0,0.00027671,2]
[327460546,1716081045303,-183.82,0.00027671,2]
[327460547,1716081045313,-963.19,0.00027671,2]
[327460548,1716081045322,-500.0,0.00027671,2]
[327460549,1716081045332,-500.0,0.00027671,2]
[327460550,1716081045342,-500.0,0.00027671,2]
[327460551,1716081045351,-500.0,0.00027671,2]
[327460552,1716081045361,-500.0,0.00027671,2]
[327460553,1716081045370,-500.0,0.00027671,2]
[327460554,1716081045379,-500.0,0.00027671,2]
[327460555,1716081045389,-500.0,0.00027671,2]
[327460556,1716081045399,-500.0,0.00027671,2]
[327460557,1716081045409,-500.0,0.00027671,2]
[327460558,1716081045418,-500.0,0.00027671,2]
[327460559,1716081045428,-1116.79,0.00027671,2]
[327460560,1716081045437,-500.0,0.00027671,2]
[327460561,1716081045447,-843.27,0.00027671,2]
[327460562,1716081045460,-500.0,0.00027671,2]
[327460563,1716081045469,-382.59226243,0.00027671,2]
[327460564,1716081045478,-500.0,0.00027671,2]
[327460565,1716081045488,-500.0,0.00027671,2]
[327460566,1716081045497,-844.63,0.00027671,2]
[327460567,1716081045507,-500.0,0.00027671,2]
[327460568,1716081045516,-500.0,0.00027671,2]
[327460569,1716081045526,-500.0,0.00027671,2]
[327460570,1716081045536,-570.16,0.00027671,2]
[327460571,1716081045545,-825.21,0.00027671,2]
[327460572,1716081045556,-500.0,0.00027671,2]
[327460573,1716081045567,-500.0,0.00027671,2]
[327460574,1716081045576,-500.0,0.00027671,2]
[327460575,1716081045585,-500.0,0.00027671,2]
[327460576,1716081045596,-592.37,0.00027671,2]
[327460577,1716081045606,-500.0,0.00027671,2]
[327460578,1716081045615,-500.0,0.00027671,2]
[327460579,1716081045624,-500.0,0.00027671,2]
[327460580,1716081045634,-500.0,0.00027671,2]
[327460581,1716081045643,-500.0,0.00027671,2]
[327460582,1716081045652,-467.45,0.00027671,2]
[327460583,1716081045663,-500.0,0.00027671,2]
[327460584,1716081045672,-500.0,0.00027671,2]
[327460585,1716081045681,-500.0,0.00027671,2]
[327460586,1716081045690,-169.8772668,0.00027671,2]
[327460587,1716081045699,-500.0,0.00027671,2]
[327460588,1716081045709,-504.91,0.00027671,2]
[327460589,1716081045719,-500.0,0.00027671,2]
[327460590,1716081045728,-500.0,0.00027671,2]
[327460591,1716081045738,-500.0,0.00027671,2]
[327460592,1716081045748,-500.0,0.00027671,2]
[327460594,1716081045757,-500.0,0.00027671,2]
[327460595,1716081045766,-528.5,0.00027671,2]
[327460597,1716081045775,-630.64,0.00027671,2]
[327460599,1716081045785,-500.0,0.00027671,2]
[327460601,1716081045794,-189.87,0.00027671,2]